fUSD/lending_fUSD_20251123
["ID","MTS","AMOUNT","RATE_DAILY","PERIOD"]
[394754508,1763928672329,-151.0,0.00039,120]
[394754509,1763928672340,-151.0,0.00039,120]
[394754510,1763928672349,-151.0,0.00039,120]
[394754511,1763928672357,-256.266464,0.00039,120]
[394754512,1763928672366,-256.266464,0.00039,120]
[394754513,1763928672375,-256.266464,0.00039,120]
[394754514,1763928672385,-256.266466,0.00039,120]
[394754515,1763928672394,-940.0,0.00039003,2]
[394754516,1763928672403,-653.0,0.00039012,7]
[394754517,1763928672412,-653.0,0.00039032,7]
[394754518,1763928672423,-500.0,0.0003904,30]
[394754519,1763928672431,-150.0,0.0003904,2]
[394754520,1763928672440,-205.51892774,0.0003904,2]
[394754521,1763928672450,-500.0,0.0003904,30]
[394754522,1763928672459,-500.0,0.0003904,30]
[394754523,1763928672468,-500.0,0.0003904,30]
[394754524,1763928672477,-150.0,0.0003904,30]
[394754525,1763928672486,-2911.0,0.0003904,30]
[394754526,1763928672495,-150.0,0.0003904,30]
[394754527,1763928672506,-456.0,0.0003904,30]
[394754528,1763928672515,-1148.0,0.00039126,20]
[394754529,1763928672527,-940.0,0.0003913,2]
[394754530,1763928672541,-150.0,0.00039151,2]
[394754531,1763928672551,-211.967788,0.00039169,120]
[394754532,1763928672561,-211.967788,0.00039169,120]
[394754533,1763928672570,-211.967788,0.00039169,120]
[394754534,1763928672581,-211.967796,0.00039169,120]
[394754535,1763928672590,-151.0,0.00039169,28]
[394754536,1763928672600,-151.0,0.00039169,28]
[394754537,1763928672609,-151.0,0.00039169,28]
[394754538,1763928672618,-55976.71968435,0.00039169,21]
[394754539,1763928672628,-25000.0,0.00039169,15]
[394754540,1763928672638,-25000.0,0.00039169,15]
[394754541,1763928672648,-150.0,0.00039173,5]
[394754542,1763928672657,-500.0,0.00039176,8]
[394754543,1763928672667,-500.0,0.00039176,7]
[394754544,1763928672676,-500.0,0.00039176,8]
[394754545,1763928672686,-500.0,0.00039176,2]
[394754546,1763928672695,-500.0,0.00039177,30]
[394754547,1763928672704,-150.0,0.00039177,2]
[394754548,1763928672713,-623.847373,0.00039177,30]
[394754549,1763928672722,-500.0,0.00039177,30]
[394754550,1763928672732,-500.0,0.00039177,30]
[394754551,1763928672741,-200.0,0.00039177,30]
[394754552,1763928672752,-2911.0,0.00039177,30]
[394754553,1763928672761,-150.0,0.00039177,30]
[394754554,1763928672770,-456.0,0.00039177,30]
[394754555,1763928672779,-500.0,0.00039177,8]
[394754556,1763928672788,-500.0,0.00039177,7]
[394754557,1763928672798,-500.0,0.00039177,8]
[394754558,1763928672807,-500.0,0.00039177,2]
[394754559,1763928672816,-25000.0,0.00039178,15]
[394754560,1763928672825,-25000.0,0.00039178,15]
[394754561,1763928672834,-25000.0,0.00039178,15]
[394754562,1763928672843,-25000.0,0.00039178,15]
[394754563,1763928672852,-500.0,0.00039178,8]
[394754564,1763928672860,-500.0,0.00039178,8]
[394754565,1763928672869,-500.0,0.00039178,8]
[394754566,1763928672878,-578.8,0.00039178,8]
[394754567,1763928672887,-500.0,0.00039178,8]
[394754568,1763928672904,-500.0,0.00039178,8]
[394754569,1763928672915,-500.0,0.00039178,8]
[394754570,1763928672924,-500.0,0.00039178,8]
[394754571,1763928672933,-500.0,0.00039178,8]
[394754572,1763928672942,-500.0,0.00039178,8]
[394754573,1763928672951,-500.0,0.00039178,8]
[394754574,1763928672960,-500.0,0.00039178,8]
[394754575,1763928672969,-500.0,0.00039178,8]
[394754576,1763928672978,-500.0,0.00039178,8]
[394754577,1763928672987,-500.0,0.00039178,8]
[394754578,1763928672996,-500.0,0.00039178,8]
[394754579,1763928673005,-549.24,0.00039178,8]
[394754580,1763928673014,-595.57,0.00039178,8]
[394754581,1763928673023,-500.0,0.00039178,8]
[394754582,1763928673032,-500.0,0.00039178,8]
[394754583,1763928673040,-500.0,0.00039178,8]
[394754584,1763928673050,-660.49,0.00039178,8]
[394754585,1763928673059,-196.87640812,0.00039178,8]
[394754586,1763928673068,-709.07,0.00039178,8]
[394754587,1763928673077,-500.0,0.00039178,8]
[394754588,1763928673086,-500.0,0.00039178,8]
[394754589,1763928673094,-500.0,0.00039178,8]
[394754590,1763928673103,-500.0,0.00039178,8]
[394754591,1763928673112,-500.0,0.00039178,8]
[394754592,1763928673121,-500.0,0.00039178,8]
[394754593,1763928673130,-500.0,0.00039178,8]
[394754594,1763928673139,-500.0,0.00039178,8]
[394754595,1763928673148,-500.0,0.00039178,8]
[394754596,1763928673157,-500.0,0.00039178,8]
[394754597,1763928673167,-500.0,0.00039178,8]
[394754598,1763928673175,-500.0,0.00039178,8]
[394754599,1763928673184,-500.0,0.00039178,8]
[394754600,1763928673193,-500.0,0.00039178,8]
[394754601,1763928673202,-500.0,0.00039178,8]
[394754602,1763928673211,-500.0,0.00039178,8]
[394754603,1763928673220,-500.0,0.00039178,8]
[394754604,1763928673230,-500.0,0.00039178,8]
[394754605,1763928673238,-501.28,0.00039178,8]
[394754606,1763928673247,-500.0,0.00039178,8]
[394754607,1763928673259,-645.11,0.00039178,8]
[394754608,1763928673269,-500.0,0.00039178,8]
[394754609,1763928673277,-500.0,0.00039178,8]
[394754610,1763928673287,-500.0,0.00039178,8]
[394754611,1763928673297,-500.0,0.00039178,8]
[394754612,1763928673306,-500.0,0.00039178,8]
[394754613,1763928673315,-559.3,0.00039178,8]
[394754614,1763928673324,-500.0,0.00039178,8]
[394754615,1763928673334,-500.0,0.00039178,8]
[394754616,1763928673343,-527.35,0.00039178,8]
[394754617,1763928673353,-500.0,0.00039178,8]
[394754618,1763928673362,-500.0,0.00039178,8]
[394754619,1763928673371,-383.34,0.00039178,2]
[394754620,1763928673380,-500.0,0.00039178,8]
[394754621,1763928673390,-500.0,0.00039178,8]
[394754622,1763928673399,-500.0,0.00039178,8]
[394754623,1763928673408,-549.46,0.00039178,8]
[394754624,1763928673417,-500.0,0.00039178,8]
[394754625,1763928673427,-500.0,0.00039178,8]
[394754626,1763928673435,-325.05323924,0.00039178,8]
[394754627,1763928673444,-500.0,0.00039178,8]
[394754628,1763928673458,-500.0,0.00039178,8]
[394754629,1763928673468,-500.0,0.00039178,8]
[394754630,1763928673477,-529.52,0.00039178,8]
[394754631,1763928673487,-573.26,0.00039178,8]
[394754632,1763928673496,-500.0,0.00039178,8]
[394754633,1763928673505,-515.93,0.00039178,8]
[394754634,1763928673515,-504.86336671,0.00039178,8]
[394754635,1763928673524,-545.39,0.00039178,8]
[394754636,1763928673534,-500.0,0.00039178,8]
[394754637,1763928673544,-644.46,0.00039178,8]
[394754638,1763928673558,-500.0,0.00039178,8]
[394754639,1763928673569,-500.0,0.00039178,8]
[394754640,1763928673579,-500.0,0.00039178,8]
[394754641,1763928673589,-500.0,0.00039178,8]
[394754642,1763928673597,-935.22,0.00039178,8]
[394754643,1763928673607,-500.0,0.00039178,8]
[394754644,1763928673617,-572.43,0.00039178,8]
[394754645,1763928673627,-507.95,0.00039178,8]
[394754646,1763928673637,-905.16,0.00039178,8]
[394754647,1763928673647,-502.51,0.00039178,8]
[394754648,1763928673657,-500.0,0.00039178,8]
[394754649,1763928673668,-656.93,0.00039178,8]
[394754650,1763928673677,-378.25921179,0.00039178,8]
[394754651,1763928673686,-500.0,0.00039178,8]
[394754652,1763928673696,-500.0,0.00039178,8]
[394754653,1763928673705,-842.65,0.00039178,8]
[394754654,1763928673714,-500.0,0.00039178,8]
[394754655,1763928673723,-500.0,0.00039178,8]
[394754656,1763928673732,-500.0,0.00039178,8]
[394754657,1763928673741,-500.0,0.00039178,8]
[394754658,1763928673751,-151.0,0.00039178,120]
[394754659,1763928673760,-500.0,0.00039178,8]
[394754660,1763928673769,-500.0,0.00039178,8]
[394754661,1763928673778,-500.0,0.00039178,8]
[394754662,1763928673787,-151.0,0.00039178,120]
[394754663,1763928673796,-500.0,0.00039178,8]
[394754664,1763928673805,-500.0,0.00039178,8]
[394754665,1763928673814,-500.0,0.00039178,8]
[394754666,1763928673823,-500.0,0.00039178,8]
[394754667,1763928673832,-500.0,0.00039178,8]
[394754668,1763928673841,-408.91706176,0.00039178,8]
[394754669,1763928673850,-548.0,0.00039178,8]
[394754670,1763928673859,-545.87,0.00039178,8]
[394754671,1763928673868,-700.0,0.00039178,120]
[394754672,1763928673877,-500.0,0.00039178,8]
[394754673,1763928673886,-500.0,0.00039178,8]
[394754674,1763928673896,-500.0,0.00039178,8]
[394754675,1763928673905,-744.82,0.00039178,8]
[394754676,1763928673915,-500.0,0.00039178,8]
[394754677,1763928673924,-711.27,0.00039178,8]
[394754678,1763928673933,-347.68995012,0.00039178,8]
[394754679,1763928673942,-500.0,0.00039178,8]
[394754680,1763928673951,-513.02,0.00039178,8]
[394754681,1763928673961,-500.0,0.00039178,8]
[394754682,1763928673970,-500.0,0.00039178,8]
[394754683,1763928673979,-500.0,0.00039178,8]
[394754684,1763928673989,-151.0,0.00039178,120]
[394754685,1763928673998,-151.0,0.00039178,120]
[394754686,1763928674007,-500.0,0.00039178,8]
[394754687,1763928674016,-500.0,0.00039178,8]
[394754688,1763928674025,-500.0,0.00039178,8]
[394754689,1763928674034,-500.0,0.00039178,8]
[394754690,1763928674044,-500.0,0.00039178,8]
[394754691,1763928674053,-500.0,0.00039178,8]
[394754692,1763928674062,-500.0,0.00039178,8]
[394754693,1763928674071,-500.0,0.00039178,8]
[394754694,1763928674082,-500.0,0.00039178,8]
[394754695,1763928674091,-500.0,0.00039178,8]
[394754696,1763928674101,-151.0,0.00039178,120]
[394754697,1763928674110,-151.0,0.00039178,120]
[394754698,1763928674119,-500.0,0.00039178,8]
[394754699,1763928674129,-151.0,0.00039178,120]
[394754700,1763928674138,-151.0,0.00039178,120]
[394754701,1763928674147,-500.0,0.00039178,8]
[394754702,1763928674157,-500.0,0.00039178,8]
[394754703,1763928674168,-500.0,0.00039178,8]
[394754704,1763928674177,-151.0,0.00039178,120]
[394754705,1763928674185,-500.0,0.00039178,8]
[394754706,1763928674195,-590.45,0.00039178,8]
[394754707,1763928674203,-151.0,0.00039178,120]
[394754708,1763928674213,-500.0,0.00039178,8]
[394754709,1763928674222,-151.0,0.00039178,120]
[394754710,1763928674231,-172.444147,0.00039178,120]
[394754711,1763928674240,-500.0,0.00039178,8]
[394754712,1763928674249,-500.0,0.00039178,8]
[394754713,1763928674262,-500.0,0.00039178,8]
[394754714,1763928674271,-603.08,0.00039178,8]
[394754715,1763928674280,-500.0,0.00039178,8]
[394754716,1763928674289,-500.0,0.00039178,8]
[394754717,1763928674299,-500.0,0.00039178,8]
[394754718,1763928674308,-629.55751484,0.00039178,8]
[394754719,1763928674317,-500.0,0.00039178,8]
[394754720,1763928674326,-500.0,0.00039178,8]
[394754721,1763928674338,-769.31,0.00039178,8]
[394754722,1763928674347,-500.0,0.00039178,8]
[394754723,1763928674356,-500.0,0.00039178,8]
[394754724,1763928674366,-500.0,0.00039178,8]
[394754725,1763928674376,-500.0,0.00039178,8]
[394754726,1763928674385,-568.14,0.00039178,8]
[394754727,1763928674395,-427.56758259,0.00039178,8]
[394754728,1763928674405,-500.0,0.00039178,8]
[394754729,1763928674415,-578.22607951,0.00039178,8]
[394754730,1763928674425,-500.0,0.00039178,8]
[394754731,1763928674434,-500.0,0.00039178,8]
[394754732,1763928674443,-500.0,0.00039178,8]
[394754733,1763928674452,-500.0,0.00039178,8]
[394754734,1763928674462,-500.0,0.00039178,8]
[394754735,1763928674471,-529.93,0.00039178,8]
[394754736,1763928674481,-545.92,0.00039178,8]
[394754737,1763928674491,-500.0,0.00039178,8]
[394754738,1763928674500,-500.0,0.00039178,8]
[394754739,1763928674509,-500.0,0.00039178,8]
[394754740,1763928674519,-500.0,0.00039178,8]
[394754741,1763928674528,-756.18,0.00039178,8]
[394754742,1763928674538,-185.64241117,0.00039178,8]
[394754743,1763928674547,-500.0,0.00039178,8]
[394754744,1763928674556,-500.0,0.00039178,8]
[394754745,1763928674566,-646.76478038,0.00039178,8]
[394754746,1763928674575,-873.29,0.00039178,8]
[394754747,1763928674584,-500.0,0.00039178,8]
[394754748,1763928674594,-500.0,0.00039178,8]
[394754749,1763928674604,-151.0,0.00039178,120]
[394754750,1763928674613,-748.87,0.00039178,8]
[394754751,1763928674623,-632.0,0.00039178,8]
[394754752,1763928674633,-500.0,0.00039178,8]
[394754753,1763928674643,-592.29,0.00039178,8]
[394754754,1763928674652,-500.0,0.00039178,8]
[394754755,1763928674662,-903.72,0.00039178,8]
[394754756,1763928674673,-151.0,0.00039178,120]
[394754757,1763928674683,-500.0,0.00039178,8]
[394754758,1763928674693,-500.0,0.00039178,8]
[394754759,1763928674703,-479.27577321,0.00039178,8]
[394754760,1763928674713,-500.0,0.00039178,8]
[394754761,1763928674723,-500.0,0.00039178,8]
[394754762,1763928674734,-500.0,0.00039178,8]
[394754763,1763928674744,-570.93,0.00039178,8]
[394754764,1763928674754,-300.0,0.00039178,2]
[394754765,1763928674764,-1169.13,0.00039178,8]
[394754766,1763928674773,-727.68,0.00039178,8]
[394754767,1763928674783,-151.0,0.00039178,120]
[394754768,1763928674792,-500.0,0.00039178,8]
[394754769,1763928674802,-500.0,0.00039178,8]
[394754770,1763928674812,-400.0,0.00039178,8]
[394754771,1763928674821,-151.0,0.00039178,120]
[394754772,1763928674831,-285.430702,0.00039178,8]
[394754773,1763928674841,-500.0,0.00039178,8]
[394754774,1763928674851,-506.884195,0.00039178,8]
[394754775,1763928674861,-500.0,0.00039178,8]
[394754776,1763928674870,-838.97,0.00039178,8]
[394754777,1763928674880,-598.74,0.00039178,8]
[394754778,1763928674890,-500.0,0.00039178,8]
[394754779,1763928674900,-659.2,0.00039178,8]
[394754780,1763928674910,-500.0,0.00039178,8]
[394754781,1763928674920,-457.98958369,0.00039178,8]
[394754782,1763928674930,-500.0,0.00039178,8]
[394754783,1763928674939,-500.0,0.00039178,8]
[394754784,1763928674949,-500.0,0.00039178,8]
[394754785,1763928674959,-500.0,0.00039178,8]
[394754786,1763928674968,-500.0,0.00039178,8]
[394754787,1763928674978,-500.0,0.00039178,8]
[394754788,1763928674987,-500.0,0.00039178,8]
[394754789,1763928674998,-500.0,0.00039178,8]
[394754790,1763928675007,-504.37,0.00039178,8]
[394754791,1763928675018,-524.72749282,0.00039178,8]
[394754792,1763928675027,-500.0,0.00039178,8]
[394754793,1763928675037,-638.96,0.00039178,8]
[394754794,1763928675047,-500.0,0.00039178,8]
[394754795,1763928675056,-500.0,0.00039178,8]
[394754796,1763928675066,-500.0,0.00039178,8]
[394754797,1763928675076,-151.0,0.00039178,120]
[394754798,1763928675086,-500.0,0.00039178,8]
[394754799,1763928675095,-425.001546,0.00039178,8]
[394754800,1763928675104,-500.0,0.00039178,8]
[394754801,1763928675114,-500.0,0.00039178,8]
[394754802,1763928675124,-500.0,0.00039178,8]
[394754803,1763928675133,-500.0,0.00039178,8]
[394754804,1763928675143,-500.0,0.00039178,8]
[394754805,1763928675152,-500.0,0.00039178,8]
[394754806,1763928675162,-500.0,0.00039178,8]
[394754807,1763928675172,-500.0,0.00039178,8]
[394754808,1763928675181,-500.0,0.00039178,8]
[394754809,1763928675191,-1084.35,0.00039178,8]
[394754810,1763928675201,-532.47,0.00039178,8]
[394754811,1763928675212,-151.0,0.00039178,120]
[394754812,1763928675221,-151.0,0.00039178,120]
[394754813,1763928675231,-577.83,0.00039178,8]
[394754814,1763928675241,-500.0,0.00039178,8]
[394754815,1763928675251,-500.0,0.00039178,8]
[394754816,1763928675262,-500.0,0.00039178,8]
[394754817,1763928675272,-500.0,0.00039178,8]
[394754818,1763928675282,-578.59,0.00039178,8]
[394754819,1763928675293,-500.0,0.00039178,8]
[394754820,1763928675303,-500.0,0.00039178,8]
[394754821,1763928675312,-500.0,0.00039178,8]
[394754822,1763928675322,-500.0,0.00039178,8]
[394754823,1763928675332,-500.0,0.00039178,8]
[394754824,1763928675343,-500.0,0.00039178,8]
[394754825,1763928675353,-500.0,0.00039178,8]
[394754826,1763928675363,-500.0,0.00039178,8]
[394754827,1763928675373,-500.0,0.00039178,8]
[394754828,1763928675383,-157.50437594,0.00039178,8]
[394754829,1763928675392,-500.0,0.00039178,8]
[394754830,1763928675402,-500.0,0.00039178,8]
[394754831,1763928675412,-504.9,0.00039178,8]
[394754832,1763928675423,-1000.0,0.00039178,8]
[394754833,1763928675433,-500.0,0.00039178,8]
[394754834,1763928675442,-663.95,0.00039178,8]
[394754835,1763928675452,-539.06086567,0.00039178,8]
[394754836,1763928675462,-569.42,0.00039178,8]
[394754837,1763928675472,-568.15,0.00039178,8]
[394754838,1763928675482,-500.0,0.00039178,8]
[394754839,1763928675492,-500.0,0.00039178,8]
[394754840,1763928675502,-500.0,0.00039178,8]
[394754841,1763928675513,-500.0,0.00039178,8]
[394754842,1763928675523,-500.0,0.00039178,8]
[394754843,1763928675533,-500.0,0.00039178,8]
[394754844,1763928675543,-500.0,0.00039178,8]
[394754845,1763928675554,-500.0,0.00039178,8]
[394754846,1763928675563,-500.0,0.00039178,8]
[394754847,1763928675573,-500.0,0.00039178,8]
[394754848,1763928675583,-500.0,0.00039178,8]
[394754849,1763928675593,-590.63,0.00039178,8]
[394754850,1763928675603,-500.0,0.00039178,8]
[394754851,1763928675612,-500.0,0.00039178,8]
[394754852,1763928675622,-500.0,0.00039178,8]
[394754853,1763928675633,-500.0,0.00039178,8]
[394754854,1763928675643,-291.86562843,0.00039178,8]
[394754855,1763928675653,-500.0,0.00039178,8]
[394754856,1763928675663,-500.0,0.00039178,8]
[394754857,1763928675673,-601.13,0.00039178,8]
[394754858,1763928675684,-500.0,0.00039178,8]
[394754859,1763928675694,-500.0,0.00039178,8]
[394754860,1763928675703,-500.0,0.00039178,8]
[394754861,1763928675714,-500.0,0.00039178,8]
[394754862,1763928675725,-500.0,0.00039178,8]
[394754863,1763928675735,-500.0,0.00039178,8]
[394754864,1763928675745,-677.57,0.00039178,8]
[394754865,1763928675755,-500.0,0.00039178,8]
[394754866,1763928675766,-541.44,0.00039178,8]
[394754867,1763928675775,-500.0,0.00039178,8]
[394754868,1763928675785,-162.983005,0.00039178,120]
[394754869,1763928675796,-500.0,0.00039178,8]
[394754870,1763928675806,-162.983005,0.00039178,120]
[394754871,1763928675817,-515.54,0.00039178,8]
[394754872,1763928675827,-924.9,0.00039178,8]
[394754873,1763928675837,-162.983005,0.00039178,120]
[394754874,1763928675848,-500.0,0.00039178,8]
[394754875,1763928675858,-543.16,0.00039178,8]
[394754876,1763928675868,-500.0,0.00039178,8]
[394754877,1763928675878,-162.983008,0.00039178,120]
[394754878,1763928675888,-500.0,0.00039178,8]
[394754879,1763928675898,-500.0,0.00039178,8]
[394754880,1763928675908,-649.35,0.00039178,8]
[394754881,1763928675919,-500.0,0.00039178,8]
[394754882,1763928675935,-545.71,0.00039178,8]
[394754883,1763928675946,-500.0,0.00039178,8]
[394754884,1763928675956,-547.26,0.00039178,8]
[394754885,1763928675967,-504.89,0.00039178,8]
[394754886,1763928675977,-500.0,0.00039178,8]
[394754887,1763928675989,-500.0,0.00039178,8]
[394754888,1763928676000,-572.88,0.00039178,8]
[394754889,1763928676012,-616.37,0.00039178,8]
[394754890,1763928676023,-500.0,0.00039178,8]
[394754891,1763928676032,-500.0,0.00039178,8]
[394754892,1763928676043,-500.0,0.00039178,8]
[394754893,1763928676054,-77.06026829,0.00039178,8]
[394754894,1763928676235,-500.0,0.00038356,8]
[394754895,1763928676246,-150.0,0.00038903,30]
[394754896,1763928676256,-422.93973171,0.00039178,8]
[394754897,1763928676271,-500.0,0.00039178,8]
[394754898,1763928676282,-544.3,0.00039178,8]
[394754899,1763928676292,-718.84,0.00039178,8]
[394754900,1763928676303,-500.0,0.00039178,8]
[394754901,1763928676314,-500.0,0.00039178,8]
[394754902,1763928676324,-500.0,0.00039178,8]
[394754903,1763928676334,-605.38,0.00039178,8]
[394754904,1763928676344,-523.82,0.00039178,8]
[394754905,1763928676356,-500.0,0.00039178,8]
[394754906,1763928676365,-500.0,0.00039178,8]
[394754907,1763928676375,-628.52,0.00039178,8]
[394754908,1763928676385,-500.0,0.00039178,8]
[394754909,1763928676394,-505.27955685,0.00039178,8]
[394754910,1763928676404,-500.0,0.00039178,8]
[394754911,1763928676413,-229.00409482,0.00039178,8]
[394754912,1763928676424,-667.74,0.00039178,8]
[394754913,1763928676434,-500.0,0.00039178,8]
[394754914,1763928676448,-500.0,0.00039178,8]
[394754915,1763928676458,-503.76150317,0.00039178,8]
[394754916,1763928676468,-500.0,0.00039178,8]
[394754917,1763928676479,-500.0,0.00039178,8]
[394754918,1763928676489,-500.0,0.00039178,8]
[394754919,1763928676500,-500.0,0.00039178,8]
[394754920,1763928676510,-500.0,0.00039178,8]
[394754921,1763928676521,-462.57,0.00039178,8]
[394754922,1763928676532,-500.0,0.00039178,8]
[394754923,1763928676542,-500.0,0.00039178,8]
[394754924,1763928676552,-500.0,0.00039178,8]
[394754925,1763928676563,-500.0,0.00039178,8]
[394754926,1763928676573,-982.47,0.00039178,8]
[394754927,1763928676583,-731.32,0.00039178,8]
[394754928,1763928676593,-500.0,0.00039178,8]
[394754929,1763928676603,-770.19,0.00039178,8]
[394754930,1763928676613,-500.0,0.00039178,8]
[394754931,1763928676623,-500.0,0.00039178,8]
[394754932,1763928676637,-500.0,0.00039178,8]
[394754933,1763928676648,-500.0,0.00039178,8]
[394754934,1763928676658,-500.0,0.00039178,8]
[394754935,1763928676669,-500.0,0.00039178,8]
[394754936,1763928676679,-500.0,0.00039178,8]
[394754937,1763928676690,-500.0,0.00039178,8]
[394754938,1763928676701,-500.0,0.00039178,8]
[394754939,1763928676711,-500.0,0.00039178,8]
[394754940,1763928676721,-500.0,0.00039178,8]
[394754941,1763928676732,-500.0,0.00039178,8]
[394754942,1763928676742,-500.0,0.00039178,8]
[394754943,1763928676752,-659.88,0.00039178,8]
[394754944,1763928676763,-500.0,0.00039178,8]
[394754945,1763928676774,-500.0,0.00039178,8]
[394754946,1763928676785,-500.0,0.00039178,8]
[394754947,1763928676797,-383.23679413,0.00039178,8]
[394754948,1763928676807,-500.0,0.00039178,8]
[394754949,1763928676822,-500.0,0.00039178,8]
[394754950,1763928676832,-500.0,0.00039178,8]
[394754951,1763928676843,-582.75,0.00039178,8]
[394754952,1763928676853,-500.0,0.00039178,8]
[394754953,1763928676863,-500.0,0.00039178,8]
[394754954,1763928676874,-503.04,0.00039178,8]
[394754955,1763928676885,-500.0,0.00039178,8]
[394754956,1763928676895,-702.03,0.00039178,8]
[394754957,1763928676904,-811.08,0.00039178,8]
[394754958,1763928676914,-500.0,0.00039178,8]
[394754959,1763928676924,-500.0,0.00039178,8]
[394754960,1763928676935,-500.0,0.00039178,8]
[394754961,1763928676944,-466.8564007,0.00039178,8]
[394754962,1763928677554,-377.26469063,0.00038356,2]
[394754963,1763928677568,-145.88530937,0.00038356,2]
[394754964,1763928677579,-120.07469064,0.00038356,8]
[394754965,1763928677591,-379.92530936,0.00038356,8]
[394754966,1763928677601,-523.15,0.0003863,2]
[394754967,1763928677611,-362.48108795,0.00038904,2]
[394754968,1763928677623,-160.66891205,0.00038904,2]
[394754969,1763928677633,-33.1435993,0.00039178,8]
[394754970,1763928677643,-444.55862646,0.00039178,8]
[394754971,1763928677655,-500.0,0.00039178,8]
[394754972,1763928677664,-500.0,0.00039178,8]
[394754973,1763928677676,-1799.02,0.00039178,8]
[394754974,1763928677686,-500.0,0.00039178,8]
[394754975,1763928677696,-500.0,0.00039178,8]
[394754976,1763928677706,-780.31,0.00039178,8]
[394754977,1763928677717,-500.0,0.00039178,8]
[394754978,1763928677726,-500.0,0.00039178,8]
[394754979,1763928677737,-683.83,0.00039178,8]
[394754980,1763928677750,-500.0,0.00039178,8]
[394754981,1763928677761,-460.46245679,0.00039178,8]
[394754982,1763928677878,-500.0,0.0003863,8]
[394754983,1763928677888,-39.53754321,0.00039178,8]
[394754984,1763928677899,-500.0,0.00039178,8]
[394754985,1763928677908,-424.63908505,0.00039178,8]
[394754986,1763928677922,-106.60091495,0.00039178,8]
[394754987,1763928677932,-500.0,0.00039178,8]
[394754988,1763928677942,-500.0,0.00039178,8]
[394754989,1763928677952,-519.52,0.00039178,8]
[394754990,1763928677961,-704.57,0.00039178,8]
[394754991,1763928677971,-865.77,0.00039178,8]
[394754992,1763928677981,-500.0,0.00039178,8]
[394754993,1763928677992,-809.97,0.00039178,8]
[394754994,1763928678001,-500.0,0.00039178,8]
[394754995,1763928678012,-1131.6,0.00039178,8]
[394754996,1763928678023,-500.0,0.00039178,8]
[394754997,1763928678033,-500.0,0.00039178,8]
[394754998,1763928678044,-500.0,0.00039178,8]
[394754999,1763928678058,-500.0,0.00039178,8]
[394755000,1763928678068,-500.0,0.00039178,8]
[394755001,1763928678078,-956.13,0.00039178,8]
[394755002,1763928678088,-553.68,0.00039178,8]
[394755003,1763928678099,-1855.58,0.00039178,8]
[394755004,1763928678109,-500.0,0.00039178,8]
[394755005,1763928678119,-268.95756447,0.00039178,8]
[394755006,1763928678136,-231.04243553,0.00039178,8]
[394755007,1763928678146,-500.0,0.00039178,8]